[Event "Early-Titled-Tuesday-Blitz-November-28-2023"]
[Site "Chess.com"]
[Date "2023.11.28"]
[Round "3"]
[White "The_Machine04"]
[Black "zajka-molotok"]
[Result "0-1"]
[WhiteElo "2631"]
[BlackElo "2504"]
[TimeControl "180+1"]
[EndTime "8:27:52 PST"]
[Termination "zajka-molotok won on time"]

1. c3 {[%clk 0:03:00.6]} 1... d5 {[%clk 0:02:58]} 2. Nf3 {[%clk 0:02:57.7]} 2...
Nf6 {[%clk 0:02:56.4]} 3. g3 {[%clk 0:02:49.4]} 3... Bf5 {[%clk 0:02:48.6]} 4.
Bg2 {[%clk 0:02:47.7]} 4... e6 {[%clk 0:02:47.5]} 5. O-O {[%clk 0:02:46.6]} 5...
h6 {[%clk 0:02:45.9]} 6. d3 {[%clk 0:02:32.1]} 6... c6 {[%clk 0:02:44.3]} 7.
Nbd2 {[%clk 0:02:13]} 7... Nbd7 {[%clk 0:02:38.4]} 8. Re1 {[%clk 0:02:01.8]}
8... Bh7 {[%clk 0:02:37.2]} 9. e4 {[%clk 0:01:50.5]} 9... Nc5 {[%clk 0:02:32.1]}
10. e5 {[%clk 0:01:46.2]} 10... Nfd7 {[%clk 0:02:25.9]} 11. d4 {[%clk 0:01:43]}
11... Nd3 {[%clk 0:02:25.2]} 12. Re3 {[%clk 0:01:40.1]} 12... Be7 {[%clk
0:02:13.1]} 13. Nf1 {[%clk 0:01:26.4]} 13... Nxc1 {[%clk 0:02:12.4]} 14. Rxc1
{[%clk 0:01:26.7]} 14... O-O {[%clk 0:02:08.8]} 15. Ne1 {[%clk 0:01:15.9]} 15...
c5 {[%clk 0:01:59]} 16. f4 {[%clk 0:00:44]} 16... Rc8 {[%clk 0:01:44.8]} 17. Nf3
{[%clk 0:00:34.7]} 17... Qa5 {[%clk 0:01:40.8]} 18. a3 {[%clk 0:00:33]} 18...
cxd4 {[%clk 0:01:31.4]} 19. cxd4 {[%clk 0:00:33.9]} 19... Nb6 {[%clk 0:01:26.8]}
20. Rec3 {[%clk 0:00:25.2]} 20... Rxc3 {[%clk 0:01:17.4]} 21. Rxc3 {[%clk
0:00:26.1]} 21... Nc4 {[%clk 0:01:17.8]} 22. Qb3 {[%clk 0:00:26.1]} 22... b5
{[%clk 0:01:09]} 23. N1d2 {[%clk 0:00:05.2]} 23... Qb6 {[%clk 0:01:00.6]} 0-1

[Event "Early-Titled-Tuesday-Blitz-November-28-2023"]
[Site "Chess.com"]
[Date "2023.11.28"]
[Round "3"]
[White "bubeliang"]
[Black "viktorgen2021"]
[Result "1-0"]
[WhiteElo "2639"]
[BlackElo "2470"]
[TimeControl "180+1"]
[EndTime "8:27:53 PST"]
[Termination "bubeliang won on time"]

1. e4 {[%clk 0:03:00.9]} 1... g6 {[%clk 0:02:52.7]} 2. d4 {[%clk 0:02:59.6]}
2... Bg7 {[%clk 0:02:51.9]} 3. Nc3 {[%clk 0:02:56.2]} 3... d6 {[%clk 0:02:52.4]}
4. Bc4 {[%clk 0:02:56.3]} 4... Nf6 {[%clk 0:02:52.8]} 5. Qe2 {[%clk 0:02:56.7]}
5... O-O {[%clk 0:02:53.4]} 6. e5 {[%clk 0:02:57.1]} 6... Ne8 {[%clk 0:02:51.6]}
7. e6 {[%clk 0:02:57.1]} 7... f5 {[%clk 0:02:50.5]} 8. Nf3 {[%clk 0:02:57]} 8...
c6 {[%clk 0:02:47.8]} 9. O-O {[%clk 0:02:56.9]} 9... d5 {[%clk 0:02:47.4]} 10.
Bb3 {[%clk 0:02:56.2]} 10... Qd6 {[%clk 0:02:40.8]} 11. Re1 {[%clk 0:02:51]}
11... Rf6 {[%clk 0:02:29.3]} 12. Bg5 {[%clk 0:02:32.5]} 12... Rxe6 {[%clk
0:02:26.5]} 13. Qd2 {[%clk 0:02:33]} 13... Nf6 {[%clk 0:02:22.6]} 14. Bf4 {[%clk
0:02:28.6]} 14... Qd8 {[%clk 0:02:20]} 15. Ng5 {[%clk 0:02:23.1]} 15... Rxe1+
{[%clk 0:02:18.8]} 16. Rxe1 {[%clk 0:02:24]} 16... Ne4 {[%clk 0:01:46.8]} 17.
Ngxe4 {[%clk 0:02:21]} 17... fxe4 {[%clk 0:01:47]} 18. Nxe4 {[%clk 0:02:21.2]}
18... Nd7 {[%clk 0:01:38]} 19. Ng5 {[%clk 0:02:16.6]} 19... Nf6 {[%clk 0:01:38]}
20. Ne6 {[%clk 0:02:16.6]} 20... Bxe6 {[%clk 0:01:38.1]} 21. Rxe6 {[%clk
0:02:17.5]} 21... Qd7 {[%clk 0:01:36.1]} 22. Qe2 {[%clk 0:02:17.3]} 22... Kf7
{[%clk 0:01:35.2]} 23. Re3 {[%clk 0:02:14.1]} 23... Re8 {[%clk 0:01:30.6]} 24.
c3 {[%clk 0:02:13.5]} 24... Kg8 {[%clk 0:01:26.8]} 25. Bc2 {[%clk 0:02:11.2]}
25... Qg4 {[%clk 0:01:05.5]} 26. Rf3 {[%clk 0:02:01.2]} 26... e5 {[%clk
0:00:48.6]} 27. Bxe5 {[%clk 0:02:00]} 27... Qh5 {[%clk 0:00:33.4]} 28. Qd1
{[%clk 0:01:50.1]} 28... Ng4 {[%clk 0:00:26.3]} 29. Bg3 {[%clk 0:01:44.4]} 29...
Bh6 {[%clk 0:00:17.8]} 30. h3 {[%clk 0:01:41.5]} 30... Ne3 {[%clk 0:00:03.6]}
31. fxe3 {[%clk 0:01:36.7]} 31... Bxe3+ {[%clk 0:00:03.4]} 32. Kh2 {[%clk
0:01:35.5]} 32... Qg5 {[%clk 0:00:04]} 33. Qf1 {[%clk 0:01:31.4]} 33... h5
{[%clk 0:00:04.2]} 34. Bd6 {[%clk 0:01:30.2]} 34... Kg7 {[%clk 0:00:03.8]} 35.
Rf7+ {[%clk 0:01:30.3]} 35... Kh6 {[%clk 0:00:04.3]} 36. Bf8+ {[%clk 0:01:29.6]}
36... Rxf8 {[%clk 0:00:04.7]} 37. Rxf8 {[%clk 0:01:30.5]} 37... h4 {[%clk
0:00:01.6]} 38. Rf6 {[%clk 0:01:30.4]} 38... Qg3+ {[%clk 0:00:01.5]} 39. Kh1
{[%clk 0:01:31.1]} 39... Bf4 {[%clk 0:00:01.1]} 40. Rxg6+ {[%clk 0:01:31.3]} 1-0

[Event "Early-Titled-Tuesday-Blitz-November-28-2023"]
[Site "Chess.com"]
[Date "2023.11.28"]
[Round "3"]
[White "djokovic74"]
[Black "xamax2000"]
[Result "0-1"]
[WhiteElo "2699"]
[BlackElo "2924"]
[TimeControl "180+1"]
[EndTime "8:27:56 PST"]
[Termination "xamax2000 won on time"]

1. e4 {[%clk 0:03:00.9]} 1... c6 {[%clk 0:02:47.5]} 2. Nf3 {[%clk 0:03:00.5]}
2... d5 {[%clk 0:02:48.4]} 3. Nc3 {[%clk 0:03:01]} 3... dxe4 {[%clk 0:02:48.4]}
4. Nxe4 {[%clk 0:03:01.4]} 4... Nf6 {[%clk 0:02:49.3]} 5. Qe2 {[%clk 0:03:01.7]}
5... Bg4 {[%clk 0:02:49.8]} 6. Nxf6+ {[%clk 0:03:00.2]} 6... gxf6 {[%clk
0:02:49.8]} 7. h3 {[%clk 0:02:58.2]} 7... Bh5 {[%clk 0:02:49.9]} 8. d3 {[%clk
0:02:58.4]} 8... c5 {[%clk 0:02:35.2]} 9. g4 {[%clk 0:02:56]} 9... Bg6 {[%clk
0:02:34.2]} 10. Bd2 {[%clk 0:02:45]} 10... Nc6 {[%clk 0:02:33.5]} 11. Bg2 {[%clk
0:02:43.1]} 11... e6 {[%clk 0:02:32.9]} 12. O-O-O {[%clk 0:02:29]} 12... Qd7
{[%clk 0:02:32.2]} 13. Kb1 {[%clk 0:02:27.2]} 13... O-O-O {[%clk 0:02:29.2]} 14.
Bc3 {[%clk 0:02:16.7]} 14... Be7 {[%clk 0:02:27]} 15. Nd2 {[%clk 0:01:58.4]}
15... Rhg8 {[%clk 0:02:26.6]} 16. f4 {[%clk 0:01:58.1]} 16... f5 {[%clk
0:02:23.6]} 17. g5 {[%clk 0:01:54.9]} 17... Bd6 {[%clk 0:02:11.3]} 18. Qf2
{[%clk 0:01:44]} 18... Qc7 {[%clk 0:02:09.4]} 19. Rdf1 {[%clk 0:01:34.6]} 19...
Kb8 {[%clk 0:02:04.6]} 20. Nc4 {[%clk 0:01:33.8]} 20... Ka8 {[%clk 0:01:56.4]}
21. a4 {[%clk 0:01:08.1]} 21... Bh5 {[%clk 0:01:54.7]} 22. a5 {[%clk 0:01:04.3]}
22... a6 {[%clk 0:01:52.1]} 23. Nb6+ {[%clk 0:00:55.8]} 23... Ka7 {[%clk
0:01:49]} 24. b4 {[%clk 0:00:18.6]} 24... Kb8 {[%clk 0:01:44.1]} 25. bxc5 {[%clk
0:00:17]} 25... Be7 {[%clk 0:01:44.8]} 26. Ka1 {[%clk 0:00:13.3]} 26... Ka7
{[%clk 0:01:39.8]} 27. Rb1 {[%clk 0:00:13.5]} 27... Rb8 {[%clk 0:01:39.9]} 28.
Rb3 {[%clk 0:00:12.2]} 28... Rgd8 {[%clk 0:01:36.8]} 29. Rhb1 {[%clk 0:00:11.9]}
29... Bf8 {[%clk 0:01:12]} 0-1

[Event "Early-Titled-Tuesday-Blitz-November-28-2023"]
[Site "Chess.com"]
[Date "2023.11.28"]
[Round "3"]
[White "ljuks68"]
[Black "M1711"]
[Result "0-1"]
[WhiteElo "2427"]
[BlackElo "2603"]
[TimeControl "180+1"]
[EndTime "8:27:58 PST"]
[Termination "M1711 won by resignation"]

1. e4 {[%clk 0:03:00.9]} 1... e6 {[%clk 0:02:59]} 2. d4 {[%clk 0:03:00.6]} 2...
d5 {[%clk 0:02:58.6]} 3. Nc3 {[%clk 0:03:00.9]} 3... Nf6 {[%clk 0:02:57.1]} 4.
Bg5 {[%clk 0:03:01]} 4... h6 {[%clk 0:02:55]} 5. Bxf6 {[%clk 0:02:58]} 5... Qxf6
{[%clk 0:02:55.9]} 6. e5 {[%clk 0:02:52.9]} 6... Qd8 {[%clk 0:02:55]} 7. f4
{[%clk 0:02:52.9]} 7... c5 {[%clk 0:02:53.4]} 8. Nf3 {[%clk 0:02:52.5]} 8... Nc6
{[%clk 0:02:52.2]} 9. Bd3 {[%clk 0:02:50.6]} 9... g5 {[%clk 0:02:50.8]} 10. fxg5
{[%clk 0:02:28.7]} 10... hxg5 {[%clk 0:02:49.9]} 11. dxc5 {[%clk 0:02:16.8]}
11... g4 {[%clk 0:02:40.6]} 12. Nd2 {[%clk 0:02:16.8]} 12... Nxe5 {[%clk
0:02:40.5]} 13. Qe2 {[%clk 0:02:17.2]} 13... Nxd3+ {[%clk 0:02:12.9]} 14. cxd3
{[%clk 0:02:01.1]} 14... Bxc5 {[%clk 0:02:06.3]} 15. Qxg4 {[%clk 0:02:01]} 15...
Qh4+ {[%clk 0:01:54.8]} 16. Qxh4 {[%clk 0:02:00.8]} 16... Rxh4 {[%clk
0:01:55.7]} 17. Nf3 {[%clk 0:01:54.4]} 17... Rh8 {[%clk 0:01:51.4]} 18. Rc1
{[%clk 0:01:48.2]} 18... Bb6 {[%clk 0:01:34]} 19. Ke2 {[%clk 0:01:25.6]} 19...
Bd7 {[%clk 0:01:33.6]} 20. Ne5 {[%clk 0:01:19.5]} 20... f6 {[%clk 0:01:27.3]}
21. Nf3 {[%clk 0:01:06.4]} 21... Ke7 {[%clk 0:01:23.3]} 22. Rce1 {[%clk
0:00:46.3]} 22... Kd6 {[%clk 0:01:22.5]} 23. g3 {[%clk 0:00:28.1]} 23... e5
{[%clk 0:01:19.5]} 24. Nh4 {[%clk 0:00:28]} 24... Rac8 {[%clk 0:00:59.5]} 25.
Rhf1 {[%clk 0:00:26.2]} 25... Bg4+ {[%clk 0:00:48.1]} 26. Kd2 {[%clk 0:00:25]}
26... Ke6 {[%clk 0:00:47.3]} 27. Ng6 {[%clk 0:00:19.5]} 27... Rxh2+ {[%clk
0:00:46]} 0-1

[Event "Early-Titled-Tuesday-Blitz-November-28-2023"]
[Site "Chess.com"]
[Date "2023.11.28"]
[Round "3"]
[White "SimplyDevina"]
[Black "infantaria08"]
[Result "1-0"]
[WhiteElo "2401"]
[BlackElo "2200"]
[TimeControl "180+1"]
[EndTime "8:28:00 PST"]
[Termination "SimplyDevina won by resignation"]

1. d4 {[%clk 0:03:00.9]} 1... Nf6 {[%clk 0:02:59.9]} 2. c4 {[%clk 0:03:00.5]}
2... e6 {[%clk 0:03:00.6]} 3. Nc3 {[%clk 0:03:00.3]} 3... Bb4 {[%clk 0:03:01.3]}
4. Qc2 {[%clk 0:02:54.8]} 4... c5 {[%clk 0:03:01.4]} 5. e3 {[%clk 0:02:53.9]}
5... O-O {[%clk 0:03:01.9]} 6. Nf3 {[%clk 0:02:54]} 6... b6 {[%clk 0:03:01.1]}
7. Be2 {[%clk 0:02:53.6]} 7... Nc6 {[%clk 0:03:00]} 8. O-O {[%clk 0:02:52.6]}
8... Bxc3 {[%clk 0:03:00.7]} 9. Qxc3 {[%clk 0:02:47.9]} 9... Ne4 {[%clk
0:03:00.6]} 10. Qc2 {[%clk 0:02:48.6]} 10... f5 {[%clk 0:03:01.1]} 11. b3 {[%clk
0:02:48.3]} 11... Nb4 {[%clk 0:02:51.5]} 12. Qb2 {[%clk 0:02:35.4]} 12... Bb7
{[%clk 0:02:44.8]} 13. a3 {[%clk 0:02:33.1]} 13... Nc6 {[%clk 0:02:43.7]} 14.
Rd1 {[%clk 0:02:27.4]} 14... Qe7 {[%clk 0:02:21.2]} 15. d5 {[%clk 0:02:14.2]}
15... exd5 {[%clk 0:02:00.7]} 16. cxd5 {[%clk 0:02:13.8]} 16... Nd8 {[%clk
0:01:57.5]} 17. d6 {[%clk 0:01:11.2]} 17... Nxd6 {[%clk 0:01:43.5]} 18. Qd2
{[%clk 0:01:07.4]} 18... N8f7 {[%clk 0:01:23.8]} 19. Bb2 {[%clk 0:01:04.6]}
19... Rad8 {[%clk 0:01:20.8]} 20. Qc3 {[%clk 0:00:56.2]} 20... Nh6 {[%clk
0:01:08.7]} 21. Rxd6 {[%clk 0:00:53.1]} 21... Ng4 {[%clk 0:00:48.5]} 22. Rad1
{[%clk 0:00:39.9]} 22... Bc6 {[%clk 0:00:47.6]} 23. Ne5 {[%clk 0:00:36]} 23...
Nxe5 {[%clk 0:00:28.2]} 24. Qxe5 {[%clk 0:00:36]} 24... Qf7 {[%clk 0:00:20.7]}
25. Bc4 {[%clk 0:00:32.3]} 1-0

[Event "Early-Titled-Tuesday-Blitz-November-28-2023"]
[Site "Chess.com"]
[Date "2023.11.28"]
[Round "3"]
[White "Der_Balak_3Halak"]
[Black "zverr1"]
[Result "0-1"]
[WhiteElo "2300"]
[BlackElo "2541"]
[TimeControl "180+1"]
[EndTime "8:28:01 PST"]
[Termination "zverr1 won by resignation"]

1. d4 {[%clk 0:03:00.9]} 1... Nf6 {[%clk 0:02:59.3]} 2. Nf3 {[%clk 0:02:59.7]}
2... g6 {[%clk 0:02:59.6]} 3. e3 {[%clk 0:02:56.8]} 3... Bg7 {[%clk 0:02:59.7]}
4. Bd3 {[%clk 0:02:56.6]} 4... O-O {[%clk 0:03:00.2]} 5. Nbd2 {[%clk 0:02:53.1]}
5... d5 {[%clk 0:03:00.4]} 6. c3 {[%clk 0:02:45.9]} 6... b6 {[%clk 0:03:00.2]}
7. O-O {[%clk 0:02:44]} 7... Bb7 {[%clk 0:03:00.6]} 8. Qe2 {[%clk 0:02:39.6]}
8... Nbd7 {[%clk 0:02:57.9]} 9. b4 {[%clk 0:02:33.6]} 9... e5 {[%clk 0:02:50.6]}
10. Nxe5 {[%clk 0:02:10]} 10... Nxe5 {[%clk 0:02:50.5]} 11. dxe5 {[%clk
0:02:10.9]} 11... Nd7 {[%clk 0:02:50.7]} 12. f4 {[%clk 0:02:10.1]} 12... Qe7
{[%clk 0:02:46.9]} 13. Nf3 {[%clk 0:01:44.4]} 13... f6 {[%clk 0:02:46]} 14. exf6
{[%clk 0:01:42.1]} 14... Nxf6 {[%clk 0:02:46.8]} 15. Ne5 {[%clk 0:01:07.7]}
15... Nd7 {[%clk 0:02:45.8]} 16. Nxd7 {[%clk 0:01:03.1]} 16... Qxd7 {[%clk
0:02:46.7]} 17. Bd2 {[%clk 0:00:55]} 17... Rae8 {[%clk 0:02:46.8]} 18. Qf2
{[%clk 0:00:26.1]} 18... Kh8 {[%clk 0:02:46.5]} 19. Rae1 {[%clk 0:00:24.6]}
19... Qa4 {[%clk 0:02:43.3]} 20. h4 {[%clk 0:00:15.5]} 20... c5 {[%clk
0:02:33.2]} 21. h5 {[%clk 0:00:15.1]} 21... c4 {[%clk 0:01:43.2]} 22. Bb1 {[%clk
0:00:11.9]} 22... Qc6 {[%clk 0:01:43.7]} 23. hxg6 {[%clk 0:00:11.2]} 23... hxg6
{[%clk 0:01:44.6]} 24. Qh4+ {[%clk 0:00:11.4]} 24... Kg8 {[%clk 0:01:45.4]} 25.
f5 {[%clk 0:00:11.5]} 25... d4 {[%clk 0:01:33.8]} 26. Rf3 {[%clk 0:00:11.6]}
26... d3 {[%clk 0:01:26.6]} 27. fxg6 {[%clk 0:00:10.3]} 27... Qxg6 {[%clk
0:01:12.4]} 28. e4 {[%clk 0:00:05.9]} 28... Rxf3 {[%clk 0:01:09.5]} 29. Kh1
{[%clk 0:00:06]} 29... Qf6 {[%clk 0:00:58.4]} 30. Qxf6 {[%clk 0:00:05.2]} 30...
Rxf6 {[%clk 0:00:58.3]} 0-1

[Event "Early-Titled-Tuesday-Blitz-November-28-2023"]
[Site "Chess.com"]
[Date "2023.11.28"]
[Round "3"]
[White "KononenkoD"]
[Black "Zapateado"]
[Result "1-0"]
[WhiteElo "2510"]
[BlackElo "2356"]
[TimeControl "180+1"]
[EndTime "8:28:02 PST"]
[Termination "KononenkoD won on time"]

1. e4 {[%clk 0:03:00.8]} 1... c5 {[%clk 0:02:59.6]} 2. Nf3 {[%clk 0:03:00.6]}
2... g6 {[%clk 0:03:00.1]} 3. d4 {[%clk 0:02:59.7]} 3... cxd4 {[%clk 0:03:01]}
4. Qxd4 {[%clk 0:02:59.8]} 4... Nf6 {[%clk 0:03:00.1]} 5. Bb5 {[%clk 0:02:59.7]}
5... a6 {[%clk 0:03:00]} 6. e5 {[%clk 0:03:00]} 6... axb5 {[%clk 0:02:58.9]} 7.
exf6 {[%clk 0:03:00]} 7... Nc6 {[%clk 0:02:56.8]} 8. Qh4 {[%clk 0:03:00.1]} 8...
Ra4 {[%clk 0:02:53.3]} 9. Qg3 {[%clk 0:02:57.3]} 9... Re4+ {[%clk 0:02:27.1]}
10. Be3 {[%clk 0:02:55.9]} 10... Bh6 {[%clk 0:02:23.8]} 11. O-O {[%clk
0:02:53.5]} 11... Bxe3 {[%clk 0:02:13.2]} 12. fxe3 {[%clk 0:02:52.8]} 12... exf6
{[%clk 0:02:03.9]} 13. Nc3 {[%clk 0:02:52.3]} 13... Re6 {[%clk 0:02:02.3]} 14.
Nxb5 {[%clk 0:02:43.9]} 14... O-O {[%clk 0:02:00.1]} 15. Rae1 {[%clk 0:02:31.7]}
15... Qb6 {[%clk 0:01:56.3]} 16. Nbd4 {[%clk 0:02:32.1]} 16... Qxb2 {[%clk
0:01:40.1]} 17. Nxe6 {[%clk 0:02:29.1]} 17... fxe6 {[%clk 0:01:41]} 18. e4
{[%clk 0:02:23.5]} 18... e5 {[%clk 0:01:30.9]} 19. Qf2 {[%clk 0:02:18.1]} 19...
Qxa2 {[%clk 0:01:26.7]} 20. Qd2 {[%clk 0:02:18.3]} 20... Qc4 {[%clk 0:01:13.5]}
21. Qd5+ {[%clk 0:02:08.8]} 21... Qxd5 {[%clk 0:01:11.6]} 22. exd5 {[%clk
0:02:09.7]} 22... Nb4 {[%clk 0:01:06.3]} 23. c4 {[%clk 0:02:10]} 23... d6 {[%clk
0:00:52.4]} 24. Rb1 {[%clk 0:02:09.7]} 24... Nd3 {[%clk 0:00:44.9]} 25. Rb6
{[%clk 0:02:08]} 25... Rd8 {[%clk 0:00:35.8]} 26. Nd2 {[%clk 0:02:07]} 26... Kg7
{[%clk 0:00:31.8]} 27. Ne4 {[%clk 0:02:04.1]} 27... f5 {[%clk 0:00:18.6]} 28.
Nxd6 {[%clk 0:02:01.4]} 28... e4 {[%clk 0:00:17.6]} 29. Nxb7 {[%clk 0:01:29.3]}
29... Rd7 {[%clk 0:00:05]} 30. Nd6 {[%clk 0:01:27.4]} 30... e3 {[%clk
0:00:04.9]} 31. Nxc8 {[%clk 0:01:24.1]} 31... e2 {[%clk 0:00:04.6]} 32. Ra1
{[%clk 0:01:19.6]} 32... Rd8 {[%clk 0:00:02.6]} 33. Ne7 {[%clk 0:01:13.6]} 33...
Re8 {[%clk 0:00:02.2]} 34. d6 {[%clk 0:01:13.6]} 1-0

[Event "Early-Titled-Tuesday-Blitz-November-28-2023"]
[Site "Chess.com"]
[Date "2023.11.28"]
[Round "3"]
[White "OneTrickPony_82"]
[Black "PawnEatingZombie"]
[Result "1-0"]
[WhiteElo "2409"]
[BlackElo "2179"]
[TimeControl "180+1"]
[EndTime "8:28:02 PST"]
[Termination "OneTrickPony_82 won by resignation"]

1. d4 {[%clk 0:03:00.9]} 1... Nf6 {[%clk 0:02:59.5]} 2. c4 {[%clk 0:03:01.1]}
2... g6 {[%clk 0:02:59.2]} 3. Nc3 {[%clk 0:03:00.5]} 3... d5 {[%clk 0:02:59.5]}
4. Nf3 {[%clk 0:02:59.4]} 4... Bg7 {[%clk 0:02:59.2]} 5. h4 {[%clk 0:02:59.9]}
5... c5 {[%clk 0:02:58]} 6. dxc5 {[%clk 0:02:59.5]} 6... Qa5 {[%clk 0:02:33.4]}
7. cxd5 {[%clk 0:02:58.5]} 7... Nxd5 {[%clk 0:01:53.3]} 8. Qxd5 {[%clk
0:02:57.7]} 8... Bxc3+ {[%clk 0:01:52.3]} 9. Bd2 {[%clk 0:02:57.6]} 9... Bxd2+
{[%clk 0:01:46.9]} 10. Qxd2 {[%clk 0:02:56.6]} 10... Qxd2+ {[%clk 0:01:45.9]}
11. Nxd2 {[%clk 0:02:53.3]} 11... Na6 {[%clk 0:01:43.5]} 12. Rc1 {[%clk
0:02:51.5]} 12... Be6 {[%clk 0:01:41.7]} 13. e3 {[%clk 0:02:47.9]} 13... Rc8
{[%clk 0:01:40.6]} 14. Bb5+ {[%clk 0:02:47.2]} 14... Kf8 {[%clk 0:01:39]} 15.
Bxa6 {[%clk 0:02:47.3]} 15... bxa6 {[%clk 0:01:38.8]} 16. b4 {[%clk 0:02:47.5]}
16... Kg7 {[%clk 0:01:37.6]} 17. Ke2 {[%clk 0:02:38.6]} 17... Rb8 {[%clk
0:01:35.6]} 18. a3 {[%clk 0:02:38.4]} 18... a5 {[%clk 0:01:35.2]} 19. Rb1 {[%clk
0:02:37.3]} 19... Rhc8 {[%clk 0:01:31.9]} 20. Rhc1 {[%clk 0:02:34.6]} 20... Rb5
{[%clk 0:01:27.7]} 21. Rb2 {[%clk 0:02:00.7]} 21... axb4 {[%clk 0:01:18.2]} 22.
axb4 {[%clk 0:01:59.5]} 22... a5 {[%clk 0:01:18.1]} 23. Ne4 {[%clk 0:01:53.6]}
23... f5 {[%clk 0:01:04.9]} 24. Ng5 {[%clk 0:01:46.9]} 24... Bg8 {[%clk
0:01:04.7]} 25. Nf3 {[%clk 0:01:45.4]} 25... axb4 {[%clk 0:00:58.4]} 26. Ne5
{[%clk 0:01:44.8]} 26... Rbxc5 {[%clk 0:00:49.8]} 27. Rxc5 {[%clk 0:01:43.9]}
27... Rxc5 {[%clk 0:00:50.4]} 28. f4 {[%clk 0:01:44.4]} 28... b3 {[%clk
0:00:40.7]} 29. Kd2 {[%clk 0:01:37.6]} 29... Bd5 {[%clk 0:00:38.9]} 30. g3
{[%clk 0:01:36.9]} 30... e6 {[%clk 0:00:38.7]} 31. Nd3 {[%clk 0:01:36.3]} 31...
Rc8 {[%clk 0:00:35.1]} 32. Nc1 {[%clk 0:01:33.5]} 32... Rb8 {[%clk 0:00:32.9]}
33. Kc3 {[%clk 0:01:32.9]} 33... Kf6 {[%clk 0:00:31.9]} 34. Nxb3 {[%clk
0:01:31.5]} 34... Bxb3 {[%clk 0:00:22.5]} 35. Rxb3 {[%clk 0:01:32.4]} 35...
Rxb3+ {[%clk 0:00:22.3]} 36. Kxb3 {[%clk 0:01:33.3]} 36... e5 {[%clk 0:00:22.8]}
37. Kc4 {[%clk 0:01:31.2]} 37... exf4 {[%clk 0:00:22.9]} 38. exf4 {[%clk
0:01:30.5]} 38... h6 {[%clk 0:00:23.2]} 39. Kd5 {[%clk 0:01:29.8]} 39... g5
{[%clk 0:00:23.4]} 40. h5 {[%clk 0:01:26.1]} 40... gxf4 {[%clk 0:00:17.4]} 41.
gxf4 {[%clk 0:01:25.7]} 41... Kg7 {[%clk 0:00:10]} 42. Ke6 {[%clk 0:01:25.4]}
42... Kg8 {[%clk 0:00:08.2]} 43. Kf6 {[%clk 0:01:25.9]} 43... Kf8 {[%clk
0:00:07.6]} 44. Kg6 {[%clk 0:01:25.6]} 44... Kg8 {[%clk 0:00:07.8]} 45. Kxh6
{[%clk 0:01:25.9]} 45... Kh8 {[%clk 0:00:07.9]} 46. Kg6 {[%clk 0:01:26.5]} 46...
Kg8 {[%clk 0:00:08.1]} 47. Kxf5 {[%clk 0:01:27.2]} 1-0

[Event "Early-Titled-Tuesday-Blitz-November-28-2023"]
[Site "Chess.com"]
[Date "2023.11.28"]
[Round "3"]
[White "Massakru"]
[Black "SmirnovTimofey2000"]
[Result "1-0"]
[WhiteElo "2355"]
[BlackElo "2072"]
[TimeControl "180+1"]
[EndTime "8:28:04 PST"]
[Termination "Massakru won by resignation"]

1. e4 {[%clk 0:03:00.9]} 1... e5 {[%clk 0:02:59.6]} 2. Nf3 {[%clk 0:03:00.1]}
2... Nf6 {[%clk 0:02:59.7]} 3. Nxe5 {[%clk 0:02:57.8]} 3... d6 {[%clk
0:02:59.8]} 4. Nf3 {[%clk 0:02:57.9]} 4... Nxe4 {[%clk 0:03:00]} 5. d4 {[%clk
0:02:56.8]} 5... d5 {[%clk 0:03:00.5]} 6. Bd3 {[%clk 0:02:57.1]} 6... Nc6 {[%clk
0:03:00.9]} 7. O-O {[%clk 0:02:57.3]} 7... Be7 {[%clk 0:03:01.5]} 8. c4 {[%clk
0:02:57.4]} 8... Nb4 {[%clk 0:03:00.9]} 9. Nc3 {[%clk 0:02:54.1]} 9... Nxd3
{[%clk 0:02:53.3]} 10. Qxd3 {[%clk 0:02:52.5]} 10... Bf5 {[%clk 0:02:48.5]} 11.
Qd1 {[%clk 0:02:12.2]} 11... Nxc3 {[%clk 0:02:43.5]} 12. bxc3 {[%clk 0:02:11.9]}
12... O-O {[%clk 0:02:44.4]} 13. c5 {[%clk 0:02:09.4]} 13... Bg4 {[%clk
0:02:39.2]} 14. h3 {[%clk 0:02:09.3]} 14... Bh5 {[%clk 0:02:39.4]} 15. Rb1
{[%clk 0:02:07.5]} 15... Rb8 {[%clk 0:02:38.1]} 16. Re1 {[%clk 0:02:06]} 16...
Re8 {[%clk 0:02:31.4]} 17. Bf4 {[%clk 0:02:04.1]} 17... b6 {[%clk 0:02:07.3]}
18. cxb6 {[%clk 0:02:02.2]} 18... axb6 {[%clk 0:02:08.2]} 19. Rb2 {[%clk
0:01:55.3]} 19... Ba3 {[%clk 0:01:57.5]} 20. Rbe2 {[%clk 0:01:55.2]} 20... Rxe2
{[%clk 0:01:51.7]} 21. Qxe2 {[%clk 0:01:55.2]} 21... f6 {[%clk 0:01:42.1]} 22.
g4 {[%clk 0:01:41.4]} 22... Bg6 {[%clk 0:01:40.7]} 23. Nh4 {[%clk 0:01:39.1]}
23... Bf7 {[%clk 0:01:27.3]} 24. Nf5 {[%clk 0:01:35.4]} 24... Qe8 {[%clk
0:01:11.1]} 25. Qd2 {[%clk 0:01:30.2]} 25... Qb5 {[%clk 0:00:53.5]} 26. Bxc7
{[%clk 0:01:26.5]} 26... Rc8 {[%clk 0:00:41.2]} 27. Bd6 {[%clk 0:01:22.7]} 27...
Bb2 {[%clk 0:00:36]} 28. Ne7+ {[%clk 0:01:21.1]} 28... Kh8 {[%clk 0:00:28.5]}
29. Nxc8 {[%clk 0:01:21.2]} 29... Qc6 {[%clk 0:00:26.3]} 30. Qxb2 {[%clk
0:01:19.1]} 30... Qxc8 {[%clk 0:00:25.9]} 31. Qxb6 {[%clk 0:01:18.1]} 31... h5
{[%clk 0:00:20.9]} 32. Qc7 {[%clk 0:01:16.9]} 32... Qg8 {[%clk 0:00:16.1]} 33.
Re7 {[%clk 0:01:15.5]} 33... Bg6 {[%clk 0:00:12.2]} 34. g5 {[%clk 0:01:13.3]}
34... fxg5 {[%clk 0:00:10.4]} 35. Rxg7 {[%clk 0:01:12.4]} 35... Qxg7 {[%clk
0:00:09.7]} 36. Be5 {[%clk 0:01:12.8]} 1-0